[Event "*** SCC Grand Prix: Titled Tuesday Blitz"]
[Site "Chess.com"]
[Date "2020.06.23"]
[Round "8"]
[White "PattyCastillo"]
[Black "floplover"]
[Result "0-1"]
[WhiteElo "1930"]
[BlackElo "2227"]
[TimeControl "180+1"]
[EndTime "11:35:37 PDT"]
[Termination "floplover won on time"]

1. d4 {[%clk 0:03:00.9]} 1... d5 {[%clk 0:02:59]} 2. Nf3 {[%clk 0:02:59.6]} 2...
e6 {[%clk 0:02:58.1]} 3. e3 {[%clk 0:02:57.4]} 3... Nf6 {[%clk 0:02:56.3]} 4.
Bd3 {[%clk 0:02:55.7]} 4... c5 {[%clk 0:02:53.1]} 5. b3 {[%clk 0:02:53.7]} 5...
b6 {[%clk 0:02:51.3]} 6. Bb2 {[%clk 0:02:50.5]} 6... Bb7 {[%clk 0:02:51.2]} 7.
Nbd2 {[%clk 0:02:48.6]} 7... Nbd7 {[%clk 0:02:50.2]} 8. O-O {[%clk 0:02:44.7]}
8... Bd6 {[%clk 0:02:47.5]} 9. Ne5 {[%clk 0:02:43.8]} 9... O-O {[%clk
0:02:39.3]} 10. f4 {[%clk 0:02:37.7]} 10... Ne4 {[%clk 0:02:27.2]} 11. Nxe4
{[%clk 0:02:08.3]} 11... dxe4 {[%clk 0:02:25.8]} 12. Bc4 {[%clk 0:02:05.2]}
12... Qe7 {[%clk 0:02:16.5]} 13. Nxd7 {[%clk 0:01:27.4]} 13... Qxd7 {[%clk
0:02:13.8]} 14. dxc5 {[%clk 0:01:23.8]} 14... bxc5 {[%clk 0:02:14.7]} 15. Qg4
{[%clk 0:01:15]} 15... f5 {[%clk 0:02:00.2]} 16. Qh5 {[%clk 0:01:04.2]} 16...
Be7 {[%clk 0:01:42.5]} 17. Rad1 {[%clk 0:01:01.4]} 17... Qc6 {[%clk 0:01:41.9]}
18. Rd2 {[%clk 0:00:39.3]} 18... Rad8 {[%clk 0:01:31.9]} 19. Rfd1 {[%clk
0:00:38.4]} 19... Rxd2 {[%clk 0:01:25.8]} 20. Rxd2 {[%clk 0:00:39.3]} 20... Bc8
{[%clk 0:01:21.1]} 21. Qd1 {[%clk 0:00:29.8]} 21... Ba6 {[%clk 0:00:43.8]} 22.
Rd7 {[%clk 0:00:17.5]} 22... Re8 {[%clk 0:00:20.4]} 23. Bxa6 {[%clk 0:00:14.1]}
23... Qxa6 {[%clk 0:00:21.3]} 24. a4 {[%clk 0:00:14]} 24... Qb6 {[%clk
0:00:20.4]} 25. Qd2 {[%clk 0:00:13.4]} 25... a6 {[%clk 0:00:20.1]} 26. Qc3
{[%clk 0:00:13.1]} 26... e5 {[%clk 0:00:11.9]} 27. Qxe5 {[%clk 0:00:10.1]} 27...
Qf6 {[%clk 0:00:03.6]} 28. Qxf6 {[%clk 0:00:07.2]} 28... gxf6 {[%clk 0:00:02.7]}
29. Kf2 {[%clk 0:00:06]} 29... Kf7 {[%clk 0:00:02.6]} 30. Ra7 {[%clk 0:00:05.3]}
30... Rd8 {[%clk 0:00:02.8]} 31. Rxa6 {[%clk 0:00:04.2]} 31... Rd2+ {[%clk
0:00:02.7]} 32. Ke1 {[%clk 0:00:04.4]} 32... Rxc2 {[%clk 0:00:03.6]} 33. Ba3
{[%clk 0:00:02.4]} 33... Rxg2 {[%clk 0:00:03.7]} 34. a5 {[%clk 0:00:01.7]} 34...
Rxh2 {[%clk 0:00:03.7]} 35. Ra7 {[%clk 0:00:01.6]} 35... Ke6 {[%clk 0:00:02.3]}
36. a6 {[%clk 0:00:01.3]} 36... Ra2 {[%clk 0:00:02.2]} 0-1

[Event "*** SCC Grand Prix: Titled Tuesday Blitz"]
[Site "Chess.com"]
[Date "2020.06.23"]
[Round "8"]
[White "Shubinkirill2003"]
[Black "Moon_stone123"]
[Result "0-1"]
[WhiteElo "2605"]
[BlackElo "2481"]
[TimeControl "180+1"]
[EndTime "11:35:39 PDT"]
[Termination "Moon_stone123 won on time"]

1. e4 {[%clk 0:03:00.9]} 1... c5 {[%clk 0:02:59.8]} 2. Nf3 {[%clk 0:03:00.5]}
2... d6 {[%clk 0:03:00.3]} 3. d4 {[%clk 0:02:59.6]} 3... cxd4 {[%clk 0:03:01.2]}
4. Qxd4 {[%clk 0:03:00.2]} 4... a6 {[%clk 0:03:01.1]} 5. h3 {[%clk 0:02:59.8]}
5... Nc6 {[%clk 0:03:01.2]} 6. Qe3 {[%clk 0:03:00.4]} 6... g6 {[%clk 0:03:01.5]}
7. c4 {[%clk 0:03:00.7]} 7... Bg7 {[%clk 0:03:02]} 8. Be2 {[%clk 0:02:59.2]}
8... Nf6 {[%clk 0:03:02.4]} 9. Nc3 {[%clk 0:02:59.1]} 9... O-O {[%clk
0:03:02.7]} 10. O-O {[%clk 0:02:59.6]} 10... Nd7 {[%clk 0:02:59.5]} 11. Rd1
{[%clk 0:02:56.7]} 11... Nc5 {[%clk 0:02:49.2]} 12. Rb1 {[%clk 0:02:55.5]} 12...
a5 {[%clk 0:02:46.9]} 13. b3 {[%clk 0:02:43.2]} 13... Bxc3 {[%clk 0:02:40.9]}
14. Qxc3 {[%clk 0:02:44.1]} 14... Nxe4 {[%clk 0:02:40.7]} 15. Qb2 {[%clk
0:02:35.8]} 15... e5 {[%clk 0:02:32.2]} 16. Bh6 {[%clk 0:02:29.4]} 16... Re8
{[%clk 0:02:30.4]} 17. Rd3 {[%clk 0:02:16.1]} 17... Bf5 {[%clk 0:02:21.2]} 18.
Rbd1 {[%clk 0:02:15.3]} 18... Qe7 {[%clk 0:02:18.9]} 19. g4 {[%clk 0:01:59.3]}
19... Be6 {[%clk 0:02:16]} 20. Re3 {[%clk 0:01:34.1]} 20... f5 {[%clk
0:02:14.1]} 21. c5 {[%clk 0:01:21.7]} 21... Nxc5 {[%clk 0:02:00.4]} 22. gxf5
{[%clk 0:01:12.5]} 22... Bxf5 {[%clk 0:01:55.4]} 23. Bc4+ {[%clk 0:01:09.3]}
23... Be6 {[%clk 0:01:55.3]} 24. Qc2 {[%clk 0:00:56.5]} 24... Rad8 {[%clk
0:01:26.2]} 25. Ng5 {[%clk 0:00:51.5]} 25... Kh8 {[%clk 0:01:13.6]} 26. Rg3
{[%clk 0:00:31.2]} 26... b5 {[%clk 0:01:07.7]} 27. Bxe6 {[%clk 0:00:27.4]} 27...
Nb4 {[%clk 0:00:49.9]} 28. Nf7+ {[%clk 0:00:18]} 28... Kg8 {[%clk 0:00:49.7]}
29. Nxd8+ {[%clk 0:00:16.5]} 29... Nxe6 {[%clk 0:00:49.8]} 30. Qd2 {[%clk
0:00:11.2]} 30... Rxd8 {[%clk 0:00:43.6]} 31. f4 {[%clk 0:00:10.5]} 31... Nd4
{[%clk 0:00:34.5]} 32. Re1 {[%clk 0:00:05.9]} 32... Qh4 {[%clk 0:00:34.1]} 33.
Qg2 {[%clk 0:00:05]} 33... Qxh6 {[%clk 0:00:33.4]} 34. fxe5 {[%clk 0:00:05]}
34... dxe5 {[%clk 0:00:33.6]} 35. Rxe5 {[%clk 0:00:05]} 35... Nbc6 {[%clk
0:00:23.9]} 36. Rd5 {[%clk 0:00:04.7]} 36... Re8 {[%clk 0:00:21.9]} 37. Rd6
{[%clk 0:00:04.3]} 37... Ne2+ {[%clk 0:00:21.2]} 38. Kh2 {[%clk 0:00:03.3]}
38... Qf4 {[%clk 0:00:19.4]} 39. Qd5+ {[%clk 0:00:01.8]} 39... Kg7 {[%clk
0:00:18.5]} 40. Rd7+ {[%clk 0:00:01.4]} 40... Kh6 {[%clk 0:00:18.9]} 0-1

[Event "*** SCC Grand Prix: Titled Tuesday Blitz"]
[Site "Chess.com"]
[Date "2020.06.23"]
[Round "8"]
[White "simplerXiao"]
[Black "Korchmar_Vasiliy"]
[Result "0-1"]
[WhiteElo "2448"]
[BlackElo "2609"]
[TimeControl "180+1"]
[EndTime "11:35:42 PDT"]
[Termination "Korchmar_Vasiliy won by checkmate"]

1. Nf3 {[%clk 0:02:58.9]} 1... d5 {[%clk 0:02:59.2]} 2. g3 {[%clk 0:02:58.1]}
2... g6 {[%clk 0:02:59.4]} 3. Bg2 {[%clk 0:02:58.1]} 3... Bg7 {[%clk 0:03:00]}
4. O-O {[%clk 0:02:58.7]} 4... e5 {[%clk 0:03:00.4]} 5. c4 {[%clk 0:02:57.6]}
5... c6 {[%clk 0:02:59.7]} 6. d4 {[%clk 0:02:49.5]} 6... e4 {[%clk 0:02:58.9]}
7. Ne1 {[%clk 0:02:47.4]} 7... Ne7 {[%clk 0:02:58.9]} 8. Nc3 {[%clk 0:02:44.1]}
8... O-O {[%clk 0:02:58.8]} 9. Bg5 {[%clk 0:02:35.5]} 9... f6 {[%clk 0:02:56.1]}
10. Bf4 {[%clk 0:02:33.8]} 10... Be6 {[%clk 0:02:47.6]} 11. b4 {[%clk
0:02:11.7]} 11... Nd7 {[%clk 0:02:45.1]} 12. b5 {[%clk 0:02:09.7]} 12... Nb6
{[%clk 0:02:39.9]} 13. c5 {[%clk 0:02:05.9]} 13... Nc4 {[%clk 0:02:39.3]} 14.
Nc2 {[%clk 0:01:58.8]} 14... g5 {[%clk 0:02:15.7]} 15. Bc1 {[%clk 0:01:55.7]}
15... Qa5 {[%clk 0:01:49.3]} 16. Qe1 {[%clk 0:01:45.6]} 16... cxb5 {[%clk
0:01:49.4]} 17. Ne3 {[%clk 0:01:44.9]} 17... Nxe3 {[%clk 0:01:04.7]} 18. Bxe3
{[%clk 0:01:33.3]} 18... Nf5 {[%clk 0:01:03.8]} 19. Bd2 {[%clk 0:01:27.4]} 19...
Qd8 {[%clk 0:00:52.2]} 20. Nxb5 {[%clk 0:01:17.1]} 20... a6 {[%clk 0:00:52.3]}
21. Nd6 {[%clk 0:01:15]} 21... Nxd6 {[%clk 0:00:50.9]} 22. cxd6 {[%clk
0:01:14.8]} 22... f5 {[%clk 0:00:48.9]} 23. Rb1 {[%clk 0:01:08.8]} 23... b5
{[%clk 0:00:33.5]} 24. e3 {[%clk 0:00:52.2]} 24... f4 {[%clk 0:00:32.9]} 25.
exf4 {[%clk 0:00:45.9]} 25... gxf4 {[%clk 0:00:33.8]} 26. Bxf4 {[%clk
0:00:44.9]} 26... Rxf4 {[%clk 0:00:31]} 27. gxf4 {[%clk 0:00:44.8]} 27... Qxd6
{[%clk 0:00:28.5]} 28. Qe3 {[%clk 0:00:35.1]} 28... Bh6 {[%clk 0:00:28.4]} 29.
Qg3+ {[%clk 0:00:28]} 29... Kh8 {[%clk 0:00:28.3]} 30. f5 {[%clk 0:00:28.2]}
30... Bf4 {[%clk 0:00:24.5]} 31. Qh3 {[%clk 0:00:23.6]} 31... Bd7 {[%clk
0:00:20.8]} 32. Kh1 {[%clk 0:00:19.8]} 32... Qf6 {[%clk 0:00:19.3]} 33. Qg4
{[%clk 0:00:18.3]} 33... Bd6 {[%clk 0:00:16.1]} 34. h3 {[%clk 0:00:17.3]} 34...
Bxf5 {[%clk 0:00:15.6]} 35. Qh5 {[%clk 0:00:17]} 35... Be6 {[%clk 0:00:07.4]}
36. Rbc1 {[%clk 0:00:16.2]} 36... Qf4 {[%clk 0:00:06.3]} 37. Qe5+ {[%clk
0:00:15.3]} 37... Bxe5 {[%clk 0:00:06]} 38. dxe5 {[%clk 0:00:16.2]} 38... Qxe5
{[%clk 0:00:06.9]} 39. Rc6 {[%clk 0:00:16.5]} 39... Rf8 {[%clk 0:00:06.3]} 40.
f4 {[%clk 0:00:15.7]} 40... exf3 {[%clk 0:00:05.6]} 41. Bxf3 {[%clk 0:00:16]}
41... Bxh3 {[%clk 0:00:05.7]} 42. Rf2 {[%clk 0:00:16]} 42... Qe1+ {[%clk
0:00:05]} 43. Kh2 {[%clk 0:00:16.2]} 43... Qxf2+ {[%clk 0:00:05.2]} 44. Kxh3
{[%clk 0:00:16.4]} 44... Qxf3+ {[%clk 0:00:05.7]} 45. Kh4 {[%clk 0:00:16.5]}
45... d4 {[%clk 0:00:06.6]} 46. Kg5 {[%clk 0:00:15.5]} 46... Qxc6 {[%clk
0:00:06.6]} 47. a4 {[%clk 0:00:14.9]} 47... Qg6+ {[%clk 0:00:07.5]} 48. Kh4
{[%clk 0:00:14.5]} 48... Rf5 {[%clk 0:00:08.4]} 49. Kh3 {[%clk 0:00:15.4]} 49...
Rh5# {[%clk 0:00:09.1]} 0-1

[Event "*** SCC Grand Prix: Titled Tuesday Blitz"]
[Site "Chess.com"]
[Date "2020.06.23"]
[Round "8"]
[White "elamier"]
[Black "Lenyas66"]
[Result "0-1"]
[WhiteElo "2331"]
[BlackElo "2510"]
[TimeControl "180+1"]
[EndTime "11:35:42 PDT"]
[Termination "Lenyas66 won on time"]

1. d4 {[%clk 0:03:00.9]} 1... e6 {[%clk 0:03:00]} 2. Nf3 {[%clk 0:02:59.6]} 2...
Nf6 {[%clk 0:02:59.7]} 3. Nbd2 {[%clk 0:02:58.7]} 3... c5 {[%clk 0:02:59]} 4. e3
{[%clk 0:02:58.8]} 4... Nc6 {[%clk 0:02:57.7]} 5. c3 {[%clk 0:02:58.5]} 5... d5
{[%clk 0:02:55.4]} 6. Bd3 {[%clk 0:02:58.3]} 6... Bd6 {[%clk 0:02:53.5]} 7. O-O
{[%clk 0:02:58.1]} 7... O-O {[%clk 0:02:53.2]} 8. dxc5 {[%clk 0:02:57.3]} 8...
Bxc5 {[%clk 0:02:52.8]} 9. e4 {[%clk 0:02:57.7]} 9... Qc7 {[%clk 0:02:49.9]} 10.
Qe2 {[%clk 0:02:54.8]} 10... Bb6 {[%clk 0:02:40.3]} 11. e5 {[%clk 0:02:32.3]}
11... Nd7 {[%clk 0:02:35]} 12. Re1 {[%clk 0:02:32]} 12... f6 {[%clk 0:02:32.1]}
13. exf6 {[%clk 0:02:30.7]} 13... Nxf6 {[%clk 0:02:32.2]} 14. Nb3 {[%clk
0:02:22.9]} 14... h6 {[%clk 0:02:27.4]} 15. Nbd4 {[%clk 0:02:21.9]} 15... Ng4
{[%clk 0:02:04.9]} 16. h3 {[%clk 0:01:49.4]} 16... Rxf3 {[%clk 0:01:59.3]} 17.
hxg4 {[%clk 0:01:38.4]} 17... Rf8 {[%clk 0:01:12.5]} 18. Be3 {[%clk 0:01:35]}
18... e5 {[%clk 0:01:09]} 19. Nb5 {[%clk 0:01:15.5]} 19... Qe7 {[%clk 0:01:08]}
20. Bxb6 {[%clk 0:01:14.3]} 20... axb6 {[%clk 0:01:07.7]} 21. Bc2 {[%clk
0:01:05]} 21... e4 {[%clk 0:00:56]} 22. Bb3 {[%clk 0:01:02.3]} 22... Be6 {[%clk
0:00:52.7]} 23. Rad1 {[%clk 0:01:00.3]} 23... Rad8 {[%clk 0:00:50.9]} 24. c4
{[%clk 0:00:53.3]} 24... dxc4 {[%clk 0:00:33.6]} 25. Bxc4 {[%clk 0:00:52.5]}
25... Rxd1 {[%clk 0:00:31.2]} 26. Rxd1 {[%clk 0:00:52.3]} 26... Bxc4 {[%clk
0:00:30.4]} 27. Qxc4+ {[%clk 0:00:52]} 27... Kh8 {[%clk 0:00:30.5]} 28. Qe2
{[%clk 0:00:40.6]} 28... Qf6 {[%clk 0:00:29.5]} 29. Nd6 {[%clk 0:00:33.8]} 29...
Nd4 {[%clk 0:00:26.9]} 30. Qxe4 {[%clk 0:00:24]} 30... Qxf2+ {[%clk 0:00:25]}
31. Kh1 {[%clk 0:00:24.2]} 31... Ne2 {[%clk 0:00:20.8]} 32. Nf7+ {[%clk
0:00:15.2]} 32... Qxf7 {[%clk 0:00:19.6]} 33. Qxe2 {[%clk 0:00:14.1]} 33... Qxa2
{[%clk 0:00:19.6]} 34. Rd7 {[%clk 0:00:09.8]} 34... Qb1+ {[%clk 0:00:17.8]} 35.
Kh2 {[%clk 0:00:09]} 35... Qg6 {[%clk 0:00:16.6]} 36. Rxb7 {[%clk 0:00:05.8]}
36... Re8 {[%clk 0:00:15.4]} 37. Qf3 {[%clk 0:00:04.6]} 37... Qd6+ {[%clk
0:00:14.7]} 38. Qg3 {[%clk 0:00:03.7]} 38... Qc5 {[%clk 0:00:13.2]} 39. Qf4
{[%clk 0:00:03.4]} 39... Rf8 {[%clk 0:00:08.6]} 40. Qg3 {[%clk 0:00:01.4]} 40...
b5 {[%clk 0:00:07.8]} 41. Rd7 {[%clk 0:00:01.1]} 41... Qg5 {[%clk 0:00:07]} 0-1

[Event "*** SCC Grand Prix: Titled Tuesday Blitz"]
[Site "Chess.com"]
[Date "2020.06.23"]
[Round "8"]
[White "Andreikka"]
[Black "Msb2"]
[Result "1-0"]
[WhiteElo "2951"]
[BlackElo "2844"]
[TimeControl "180+1"]
[EndTime "11:35:49 PDT"]
[Termination "Andreikka won by resignation"]

1. c4 {[%clk 0:03:00.9]} 1... e6 {[%clk 0:02:59.2]} 2. Nc3 {[%clk 0:03:01]} 2...
d5 {[%clk 0:02:56.9]} 3. d4 {[%clk 0:03:01.5]} 3... Bb4 {[%clk 0:02:57]} 4. a3
{[%clk 0:02:59.5]} 4... Bxc3+ {[%clk 0:02:57]} 5. bxc3 {[%clk 0:03:00.4]} 5...
Nf6 {[%clk 0:02:56.9]} 6. e3 {[%clk 0:02:58.7]} 6... c6 {[%clk 0:02:57.3]} 7.
Nf3 {[%clk 0:02:51.8]} 7... O-O {[%clk 0:02:57.3]} 8. cxd5 {[%clk 0:02:49.2]}
8... cxd5 {[%clk 0:02:56.9]} 9. Bd3 {[%clk 0:02:47.6]} 9... b6 {[%clk 0:02:57]}
10. Qe2 {[%clk 0:02:48.1]} 10... Ne4 {[%clk 0:02:52.8]} 11. Bb2 {[%clk
0:02:46.3]} 11... Nc6 {[%clk 0:02:50.4]} 12. O-O {[%clk 0:02:42.2]} 12... Na5
{[%clk 0:02:50.7]} 13. Ne5 {[%clk 0:02:29.4]} 13... f6 {[%clk 0:02:37.4]} 14.
Ng4 {[%clk 0:02:25.1]} 14... Nd6 {[%clk 0:02:31.7]} 15. f3 {[%clk 0:02:23.4]}
15... Ndc4 {[%clk 0:02:18.1]} 16. e4 {[%clk 0:02:13.4]} 16... Qc7 {[%clk
0:01:45.3]} 17. Rae1 {[%clk 0:02:05.6]} 17... Nxb2 {[%clk 0:01:26.1]} 18. Qxb2
{[%clk 0:02:04.8]} 18... Bb7 {[%clk 0:01:26.7]} 19. Ne3 {[%clk 0:01:38]} 19...
Rac8 {[%clk 0:01:26]} 20. Rc1 {[%clk 0:01:38.6]} 20... Qf4 {[%clk 0:01:23.1]}
21. Qe2 {[%clk 0:01:34.7]} 21... Qd6 {[%clk 0:01:10.8]} 22. exd5 {[%clk
0:01:35]} 22... Bxd5 {[%clk 0:01:08.9]} 23. Nxd5 {[%clk 0:01:21.1]} 23... exd5
{[%clk 0:01:06.6]} 24. Rfe1 {[%clk 0:01:21]} 24... Qd7 {[%clk 0:00:54.9]} 25.
Bb5 {[%clk 0:00:43.9]} 25... Qf7 {[%clk 0:00:49.1]} 26. a4 {[%clk 0:00:43.7]}
26... Nc4 {[%clk 0:00:45.9]} 27. Qe7 {[%clk 0:00:19.3]} 27... Rc7 {[%clk
0:00:45.3]} 28. Qb4 {[%clk 0:00:19.9]} 28... a5 {[%clk 0:00:44]} 29. Qb1 {[%clk
0:00:17.9]} 29... Na3 {[%clk 0:00:33.3]} 30. Qb3 {[%clk 0:00:18]} 30... Nxb5
{[%clk 0:00:33.9]} 31. Qxb5 {[%clk 0:00:18.6]} 31... Rb8 {[%clk 0:00:34.6]} 32.
Re3 {[%clk 0:00:18.4]} 32... Qd7 {[%clk 0:00:32.5]} 33. Qb3 {[%clk 0:00:16.4]}
33... Rc4 {[%clk 0:00:31.8]} 34. Rce1 {[%clk 0:00:08.6]} 34... Qxa4 {[%clk
0:00:32]} 35. Qb1 {[%clk 0:00:09.2]} 35... Qc6 {[%clk 0:00:29.2]} 36. Re6 {[%clk
0:00:06.5]} 36... Qa4 {[%clk 0:00:21.8]} 37. Qf5 {[%clk 0:00:05.3]} 37... Rd8
{[%clk 0:00:15.4]} 38. Re7 {[%clk 0:00:05.6]} 38... Qc6 {[%clk 0:00:09.7]} 39.
Qg4 {[%clk 0:00:03.2]} 39... g6 {[%clk 0:00:10.2]} 40. Qf4 {[%clk 0:00:03.4]}
40... Rd7 {[%clk 0:00:02]} 41. Qh6 {[%clk 0:00:03.9]} 41... Rxe7 {[%clk
0:00:01.9]} 42. Rxe7 {[%clk 0:00:04.5]} 1-0

[Event "*** SCC Grand Prix: Titled Tuesday Blitz"]
[Site "Chess.com"]
[Date "2020.06.23"]
[Round "8"]
[White "Matibar"]
[Black "Rodalquilar"]
[Result "1-0"]
[WhiteElo "2821"]
[BlackElo "2638"]
[TimeControl "180+1"]
[EndTime "11:35:49 PDT"]
[Termination "Matibar won on time"]

1. d4 {[%clk 0:03:00.9]} 1... Nf6 {[%clk 0:02:59.2]} 2. Bg5 {[%clk 0:03:00.3]}
2... Ne4 {[%clk 0:02:52]} 3. Bf4 {[%clk 0:02:59.4]} 3... c5 {[%clk 0:02:51.7]}
4. e3 {[%clk 0:02:58.9]} 4... d5 {[%clk 0:02:50.2]} 5. Bd3 {[%clk 0:02:51.2]}
5... Nf6 {[%clk 0:02:49.3]} 6. c3 {[%clk 0:02:48.4]} 6... Nc6 {[%clk 0:02:45.4]}
7. Nd2 {[%clk 0:02:46.3]} 7... Bg4 {[%clk 0:02:23.7]} 8. Ne2 {[%clk 0:02:37.1]}
8... e6 {[%clk 0:02:22.5]} 9. Qa4 {[%clk 0:02:23.5]} 9... c4 {[%clk 0:02:02.2]}
10. Bb1 {[%clk 0:02:23]} 10... Bxe2 {[%clk 0:02:02.5]} 11. Kxe2 {[%clk
0:02:23.4]} 11... Bd6 {[%clk 0:02:03.3]} 12. Bxd6 {[%clk 0:02:14.9]} 12... Qxd6
{[%clk 0:02:04.2]} 13. b3 {[%clk 0:02:15.3]} 13... cxb3 {[%clk 0:02:00.8]} 14.
axb3 {[%clk 0:02:15]} 14... O-O {[%clk 0:02:01.1]} 15. f4 {[%clk 0:01:48.6]}
15... Rac8 {[%clk 0:01:47.8]} 16. Rc1 {[%clk 0:01:45.5]} 16... a6 {[%clk
0:01:36.2]} 17. Bd3 {[%clk 0:01:44.6]} 17... Ne7 {[%clk 0:01:33.5]} 18. c4
{[%clk 0:01:32.1]} 18... Nf5 {[%clk 0:01:17.3]} 19. c5 {[%clk 0:01:28.4]} 19...
Qe7 {[%clk 0:01:07.8]} 20. Nf1 {[%clk 0:01:24.4]} 20... h5 {[%clk 0:00:54.8]}
21. Qa5 {[%clk 0:01:06.4]} 21... h4 {[%clk 0:00:50.2]} 22. Qe1 {[%clk
0:01:02.4]} 22... h3 {[%clk 0:00:29]} 23. g3 {[%clk 0:00:59.4]} 23... g6 {[%clk
0:00:27]} 24. Kf2 {[%clk 0:00:57.1]} 24... Kg7 {[%clk 0:00:17.7]} 25. Kg1 {[%clk
0:00:56.8]} 25... Nd7 {[%clk 0:00:14.6]} 26. g4 {[%clk 0:00:46.5]} 26... Nh6
{[%clk 0:00:14.9]} 27. Qg3 {[%clk 0:00:45.2]} 27... f5 {[%clk 0:00:15]} 28. g5
{[%clk 0:00:43.5]} 28... Nf7 {[%clk 0:00:11.9]} 29. b4 {[%clk 0:00:38]} 29...
Rh8 {[%clk 0:00:11.2]} 30. Nd2 {[%clk 0:00:34.6]} 30... Nd8 {[%clk 0:00:10]} 31.
b5 {[%clk 0:00:30.4]} 31... axb5 {[%clk 0:00:09.9]} 32. Bxb5 {[%clk 0:00:31.3]}
32... Nc6 {[%clk 0:00:10.4]} 33. Nb3 {[%clk 0:00:24.9]} 33... Ra8 {[%clk
0:00:10.6]} 34. Qe1 {[%clk 0:00:24]} 34... Rhb8 {[%clk 0:00:08.5]} 35. Rxa8
{[%clk 0:00:22.5]} 35... Rxa8 {[%clk 0:00:08.5]} 36. Ra1 {[%clk 0:00:23.4]}
36... Qd8 {[%clk 0:00:08.8]} 37. Kf2 {[%clk 0:00:21.8]} 37... Qh8 {[%clk
0:00:08.6]} 38. Rxa8 {[%clk 0:00:19.5]} 38... Qxa8 {[%clk 0:00:09.5]} 39. Kg3
{[%clk 0:00:19.1]} 39... Qa2 {[%clk 0:00:09.2]} 40. Nd2 {[%clk 0:00:19.4]} 40...
Qb2 {[%clk 0:00:05.2]} 41. Bxc6 {[%clk 0:00:19.2]} 41... bxc6 {[%clk 0:00:06.1]}
42. Kxh3 {[%clk 0:00:18.8]} 42... Nb8 {[%clk 0:00:06.1]} 43. Nf3 {[%clk
0:00:18.4]} 43... Na6 {[%clk 0:00:05.8]} 44. Qh4 {[%clk 0:00:17.9]} 44... Qe2
{[%clk 0:00:04.2]} 45. Qh6+ {[%clk 0:00:17.7]} 45... Kf7 {[%clk 0:00:02.4]} 46.
Ne5+ {[%clk 0:00:17.8]} 46... Ke8 {[%clk 0:00:03]} 47. Qxg6+ {[%clk 0:00:16.5]}
47... Kd8 {[%clk 0:00:03.5]} 48. Qf6+ {[%clk 0:00:15.9]} 1-0

[Event "*** SCC Grand Prix: Titled Tuesday Blitz"]
[Site "Chess.com"]
[Date "2020.06.23"]
[Round "8"]
[White "Richarzard69"]
[Black "K-Nygren"]
[Result "0-1"]
[WhiteElo "2302"]
[BlackElo "2537"]
[TimeControl "180+1"]
[EndTime "11:35:49 PDT"]
[Termination "K-Nygren won by resignation"]

1. Nf3 {[%clk 0:03:00.9]} 1... Nf6 {[%clk 0:02:59.7]} 2. c4 {[%clk 0:03:00.5]}
2... e6 {[%clk 0:02:59.4]} 3. d4 {[%clk 0:02:59.7]} 3... d5 {[%clk 0:02:58.1]}
4. g3 {[%clk 0:03:00.2]} 4... dxc4 {[%clk 0:02:57.3]} 5. Qa4+ {[%clk 0:02:57.6]}
5... Bd7 {[%clk 0:02:56.6]} 6. Qxc4 {[%clk 0:02:57.4]} 6... Bc6 {[%clk
0:02:56.8]} 7. Bg2 {[%clk 0:02:57.8]} 7... Nbd7 {[%clk 0:02:56.8]} 8. O-O {[%clk
0:02:57.1]} 8... Nb6 {[%clk 0:02:56.3]} 9. Qd3 {[%clk 0:02:51.3]} 9... Be4
{[%clk 0:02:55.3]} 10. Qd1 {[%clk 0:02:51.3]} 10... Be7 {[%clk 0:02:55]} 11. Nc3
{[%clk 0:02:51.1]} 11... Bc6 {[%clk 0:02:53.9]} 12. Re1 {[%clk 0:02:32.6]} 12...
Ne4 {[%clk 0:02:49.5]} 13. Ne5 {[%clk 0:02:23]} 13... Nxc3 {[%clk 0:02:48.4]}
14. Nxc6 {[%clk 0:02:20.8]} 14... bxc6 {[%clk 0:02:43.5]} 15. Bxc6+ {[%clk
0:02:13.9]} 15... Kf8 {[%clk 0:02:36.6]} 16. bxc3 {[%clk 0:02:12.9]} 16... Rb8
{[%clk 0:02:36.6]} 17. Qd3 {[%clk 0:02:00.3]} 17... h5 {[%clk 0:02:35.6]} 18. h4
{[%clk 0:01:56.1]} 18... Nd5 {[%clk 0:02:30.6]} 19. e4 {[%clk 0:01:51.7]} 19...
Nf6 {[%clk 0:02:28.5]} 20. e5 {[%clk 0:01:40.6]} 20... Ng4 {[%clk 0:02:23.9]}
21. Bg2 {[%clk 0:01:27.2]} 21... g5 {[%clk 0:02:18.7]} 22. hxg5 {[%clk
0:01:24.1]} 22... Bxg5 {[%clk 0:02:17.7]} 23. Ba3+ {[%clk 0:01:09.2]} 23... Kg7
{[%clk 0:02:16.3]} 24. f4 {[%clk 0:01:08.7]} 24... Be7 {[%clk 0:02:14.3]} 25.
Bxe7 {[%clk 0:01:07.4]} 25... Qxe7 {[%clk 0:02:14.3]} 26. f5 {[%clk 0:01:01.9]}
26... Qg5 {[%clk 0:02:09.8]} 27. f6+ {[%clk 0:00:52.9]} 27... Kg8 {[%clk
0:02:08.3]} 28. Rab1 {[%clk 0:00:52.8]} 28... Rf8 {[%clk 0:02:06.3]} 29. Rb7
{[%clk 0:00:40]} 29... h4 {[%clk 0:02:01.9]} 30. Reb1 {[%clk 0:00:39.2]} 30...
h3 {[%clk 0:01:56.9]} 31. Rb8 {[%clk 0:00:37.5]} 31... h2+ {[%clk 0:01:36]} 32.
Kf1 {[%clk 0:00:36]} 32... h1=Q+ {[%clk 0:01:34.3]} 33. Bxh1 {[%clk 0:00:36]}
33... Rxh1+ {[%clk 0:01:33.6]} 34. Kg2 {[%clk 0:00:18.8]} 34... Rxb1 {[%clk
0:01:16.2]} 35. Qxb1 {[%clk 0:00:19]} 35... Qd2+ {[%clk 0:01:03.4]} 36. Kh3
{[%clk 0:00:13.9]} 36... Nf2+ {[%clk 0:01:02.1]} 37. Kg2 {[%clk 0:00:09.3]}
37... Nd3+ {[%clk 0:00:56.8]} 38. Kh3 {[%clk 0:00:07.2]} 38... Rxb8 {[%clk
0:00:49.4]} 39. Qxb8+ {[%clk 0:00:06.6]} 39... Kh7 {[%clk 0:00:49.4]} 40. Qf8
{[%clk 0:00:07]} 40... Qh6+ {[%clk 0:00:41]} 41. Qxh6+ {[%clk 0:00:06.7]} 41...
Kxh6 {[%clk 0:00:41.3]} 42. Kg4 {[%clk 0:00:07.1]} 42... Kg6 {[%clk 0:00:40.9]}
43. Kf3 {[%clk 0:00:07]} 43... Nc1 {[%clk 0:00:35.9]} 44. Ke4 {[%clk 0:00:07]}
44... Nxa2 {[%clk 0:00:34.9]} 45. c4 {[%clk 0:00:07.1]} 45... c6 {[%clk
0:00:30]} 46. d5 {[%clk 0:00:06.2]} 46... cxd5+ {[%clk 0:00:29.6]} 47. cxd5
{[%clk 0:00:06.1]} 47... Nc3+ {[%clk 0:00:29.5]} 48. Kd4 {[%clk 0:00:05]} 48...
Nxd5 {[%clk 0:00:29.4]} 49. Kc5 {[%clk 0:00:05.6]} 49... Kf5 {[%clk 0:00:28.2]}
50. Kd6 {[%clk 0:00:05.4]} 50... Nxf6 {[%clk 0:00:27.8]} 51. exf6 {[%clk
0:00:03.2]} 51... Kxf6 {[%clk 0:00:27.3]} 52. Kc6 {[%clk 0:00:04.1]} 52... e5
{[%clk 0:00:26.6]} 0-1